bitfinex/quotes_ETHUSD_20241018
["timestamp","ask_amount","ask_price","bid_price","bid_amount"]
[1729217495355,3.79862751,2637.4,2636.9,3.7923]
[1729217496221,0.00696751,2636.6,2636.1,1.6557]
[1729217496461,3.79294,2636.5,2636.1,1.6557]
[1729217496666,3.79294,2636.5,2636.1,2.200639]
[1729217496820,3.79294,2636.5,2636.1,0.544939]
[1729217497360,0.00696751,2636.6,2636.1,4.338399]
[1729217498154,3.79972751,2636.6,2636.1,4.338399]
[1729217498549,0.00696751,2636.6,2636.1,4.338399]
[1729217498735,3.79975751,2636.6,2636.2,0.4338399]
[1729217499869,3.79975751,2636.6,2636.1,0.544939]
[1729217500571,0.00696751,2636.6,2636.1,4.338389]
[1729217500728,0.00696751,2636.6,2636.1,4.338329]
[1729217501368,3.79973751,2636.6,2636.1,8.131719]
[1729217501574,0.00696751,2636.6,2636.1,8.131719]
[1729217501731,0.00696751,2636.6,2636.2,1.18392313]
[1729217502653,1.76540402,2636.7,2636.2,1.18392313]
[1729217502857,0.18900402,2636.7,2636.2,1.25978055]
[1729217503024,0.18900402,2636.7,2636.3,3.79318]
[1729217503228,1.6051,2636.9,2636.4,0.5735622]
[1729217503427,3.70751225,2637.4,2636.4,0.5735622]
[1729217503428,1.6051,2637.2,2636.4,0.5007428]
[1729217503677,0.18941508,2637.3,2637.0,3.79208]
[1729217504371,0.18941508,2637.3,2636.8,3.79238]
[1729217504867,5.41367751,2637.4,2636.8,3.79238]
[1729217505267,1.62206751,2637.4,2636.8,4.550885]
[1729217505467,1.62206751,2637.4,2636.9,3.79224]
[1729217505635,5.41378751,2637.4,2636.9,3.79224]
[1729217506167,1.62206751,2637.4,2637.0,3.79216]
[1729217506327,1.61206751,2637.4,2637.0,3.79216]
[1729217506531,1.6051,2637.4,2637.0,3.79216]
[1729217506878,1.79793699,2637.4,2637.1,0.8342725]
[1729217507169,1.79793699,2637.4,2637.1,0.83427189]
[1729217507386,1.79793699,2637.4,2637.1,0.75844]
[1729217508366,1.79793699,2637.4,2636.9,5.31364]
[1729217508678,1.79793699,2637.4,2636.9,9.10587]
[1729217508856,1.79793699,2637.4,2636.9,9.10588]
[1729217509046,1.79793699,2637.4,2636.9,5.31363]
[1729217509245,1.79793699,2637.4,2637.1,3.79202]
[1729217509467,1.663,2637.7,2637.3,3.79166]
[1729217509778,1.663,2637.7,2637.3,3.79165]
[1729217510332,1.663,2637.9,2637.3,3.79165]
[1729217510569,1.663,2637.9,2637.4,5.49771963]
[1729217510733,5.45398,2637.9,2637.5,0.54977196]
[1729217511577,5.64372294,2637.9,2637.5,0.54977196]
[1729217512075,5.64372294,2637.9,2637.4,3.79157]
[1729217512486,1.85274294,2637.9,2637.5,3.86724973]
[1729217513296,1.85274294,2637.9,2637.5,3.79143]
[1729217513613,0.18974294,2637.9,2637.6,3.7913]
[1729217513741,0.18974294,2637.9,2637.7,0.37913]
[1729217514283,3.98065294,2637.9,2637.7,0.37913]
[1729217514595,3.98065294,2637.9,2637.4,3.79153]
[1729217515374,3.98065294,2637.9,2637.2,9.89572045]
[1729217515375,5.34961751,2637.8,2637.2,4.5578082]
[1729217515585,0.01,2637.7,2637.2,3.79187]
[1729217516551,0.01,2637.7,2637.3,0.07582573]
[1729217516968,0.01,2637.7,2637.3,3.86755573]
[1729217517156,1.5516,2637.8,2637.4,3.79159]
[1729217517485,0.18974294,2637.9,2637.5,4.17819157]
[1729217518242,0.18974294,2637.9,2637.6,0.07581767]
[1729217518442,11.34674294,2637.9,2637.5,0.38674157]
[1729217519037,11.34674294,2637.9,2637.5,4.17818157]
[1729217519194,11.34674294,2637.9,2637.6,0.07581784]
[1729217519702,11.34674294,2637.9,2637.6,1.04240078]
[1729217519907,11.34674294,2637.9,2637.6,0.96658294]
[1729217522018,11.34674294,2637.9,2637.6,4.75789294]
[1729217522223,11.157,2637.9,2637.8,3.79103]
[1729217522423,11.157,2637.9,2637.8,4.65350402]
[1729217522796,11.157,2637.9,2637.8,0.86247402]
[1729217523142,11.157,2637.9,2637.5,3.79144]
[1729217523996,11.157,2637.9,2637.4,5.41181]
[1729217523997,14.94797,2637.9,2637.4,4.6203]
[1729217524199,11.157,2637.9,2637.4,8.41184]
[1729217524434,11.157,2637.9,2637.5,3.79142]
[1729217524635,11.157,2637.9,2637.4,8.41179]
[1729217524950,11.157,2637.9,2637.5,4.40069466]
[1729217525738,4.02900086,2637.9,2637.5,4.40069466]
[1729217527054,4.02900086,2637.9,2637.5,8.19207466]
[1729217527260,4.02900086,2637.9,2637.5,4.40063466]
[1729217528414,4.02900086,2637.9,2637.6,3.7913]
[1729217528775,4.02900086,2637.9,2637.6,5.07252347]
[1729217529129,4.02900086,2637.9,2637.6,1.28122347]
[1729217530542,4.02900086,2637.9,2637.5,3.79138]
[1729217530743,4.02900086,2637.9,2637.5,3.79136]
[1729217530953,4.02900086,2637.9,2637.6,3.79131]
[1729217532247,4.02900086,2637.9,2637.5,3.79136]
[1729217532446,4.02900086,2637.9,2637.5,7.58274]
[1729217532654,4.02900086,2637.9,2637.6,5.011614]
[1729217533021,4.02900086,2637.9,2637.6,5.08743076]
[1729217533635,4.02900086,2637.9,2637.6,5.011614]
[1729217533866,4.02900086,2637.9,2637.6,5.08743076]
[1729217534457,4.02900086,2637.9,2637.6,1.220304]
[1729217535417,4.02900086,2637.9,2637.6,5.011604]
[1729217536361,4.02900086,2637.9,2637.6,1.220304]
[1729217536756,7.81989086,2637.9,2637.6,1.220304]
[1729217537066,7.81989086,2637.9,2637.5,3.79136]
[1729217537492,4.02900086,2637.9,2637.5,3.79136]
[1729217537636,4.02900086,2637.9,2637.5,7.58274]
[1729217537976,4.02900086,2637.9,2637.5,3.79136]
[1729217538532,4.02900086,2637.9,2637.6,0.0758166]
[1729217538871,4.02900086,2637.9,2637.5,3.79136]
[1729217539035,4.02900086,2637.9,2637.6,0.07581658]
[1729217541875,4.02900086,2637.9,2637.5,5.01169]
[1729217542237,3.79142,2637.6,2637.2,1.5099]
[1729217542532,1.5774,2637.2,2636.7,3.79252]
[1729217542770,5.36934,2637.2,2636.7,3.79252]
[1729217543073,1.5774,2637.2,2636.8,4.171722]
[1729217543278,5.3693,2637.2,2636.8,0.379252]
[1729217543932,5.3693,2637.2,2636.7,3.79252]
[1729217544340,3.80221,2637.0,2636.4,0.49771031]
[1729217544530,3.79247,2636.8,2636.4,0.49771031]
[1729217544734,3.79247,2636.8,2636.1,5.3274]
[1729217545664,1.6027,2636.5,2635.9,5.41631]
[1729217545880,1.6027,2636.5,2636.1,3.79348]
[1729217546076,1.6027,2636.5,2636.1,3.79336]
[1729217547149,1.6027,2636.5,2636.1,7.58676]
[1729217547352,1.6027,2636.5,2636.2,0.758676]
[1729217547549,1.6027,2636.5,2636.1,3.79336]
[1729217548364,5.39562,2636.5,2635.9,9.20999]
[1729217548728,1.6027,2636.5,2636.0,3.7936]
[1729217549183,1.6027,2636.5,2636.1,0.00296]
[1729217549485,5.39568,2636.5,2636.1,0.00296]
[1729217549688,5.38469751,2636.2,2636.1,0.00296]
[1729217550065,1.59136751,2636.2,2636.1,0.00296]
[1729217550599,1.5844,2636.2,2636.1,0.00296]
[1729217551958,1.58335991,2636.2,2636.1,0.00296]
[1729217552164,1.57335991,2636.2,2636.1,0.00296]
[1729217552407,1.58335991,2636.2,2636.1,0.00296]
[1729217552898,1.57335991,2636.2,2636.1,0.00296]
[1729217553103,1.58335991,2636.2,2636.1,0.00296]
[1729217553802,1.57335991,2636.2,2636.1,0.00296]
[1729217553990,1.58335991,2636.2,2636.1,0.00296]
[1729217555264,1.5343,2636.4,2636.1,0.00296]
[1729217555617,1.5243,2636.4,2636.1,0.00296]
[1729217555795,1.5243,2636.4,2636.1,0.382616]
[1729217557084,9.11052,2636.4,2636.1,0.382616]
[1729217557299,5.31738,2636.4,2636.1,0.00296]
[1729217560669,1.5243,2636.4,2636.1,0.00296]
[1729217561281,5.31738,2636.4,2636.1,0.00296]
[1729217561470,1.5243,2636.4,2636.1,0.00296]
[1729217561977,5.31743,2636.4,2636.1,0.00296]
[1729217562188,1.5243,2636.4,2636.1,0.00296]
[1729217562594,5.31742,2636.4,2636.1,0.00296]
[1729217562797,1.5243,2636.4,2636.1,0.00296]
[1729217562993,1.53126751,2636.4,2636.1,0.00296]
[1729217563183,3.7932,2636.3,2636.1,0.00296]
[1729217563911,7.58647,2636.3,2636.1,0.00296]
[1729217564102,5.46099751,2636.2,2636.1,0.00296]
[1729217566903,3.7932,2636.3,2636.1,0.00296]
[1729217567075,3.79327,2636.3,2636.1,0.00296]
[1729217567281,3.79319,2636.3,2636.1,0.00296]
[1729217569749,3.79333,2636.2,2636.1,0.00296]
[1729217570105,5.32853,2636.2,2636.1,0.00296]
[1729217571105,5.34549751,2636.2,2636.1,0.00296]
[1729217571443,6.25936726,2636.2,2636.1,0.00296]
[1729217573106,5.34549751,2636.2,2636.1,0.00296]
[1729217573443,1.55216751,2636.2,2636.1,0.00296]
[1729217573808,0.01696751,2636.2,2636.1,0.00296]
[1729217575345,0.01,2636.2,2636.1,0.00296]
[1729217577045,0.01696751,2636.2,2636.1,0.00296]
[1729217577245,3.81029751,2636.2,2636.1,0.00296]
[1729217577448,3.80029751,2636.2,2636.1,0.00296]
[1729217577642,5.35064751,2636.4,2636.1,0.00296]
[1729217577852,0.01,2636.2,2636.1,0.00296]
[1729217578442,0.01696751,2636.2,2636.1,0.00296]
[1729217578843,0.00696751,2636.2,2636.1,0.00296]
[1729217579052,3.81029751,2636.2,2636.1,0.00296]
[1729217579227,0.01696751,2636.2,2636.1,0.00296]
[1729217579852,3.79321,2636.3,2636.1,0.00296]
[1729217580057,1.55756751,2636.4,2636.1,0.00296]
[1729217580058,0.01,2636.2,2636.1,0.00296]
[1729217582499,5.34066751,2636.4,2636.1,0.00296]
[1729217582500,0.01,2636.4,2636.1,0.00296]
[1729217582768,0.01696751,2636.6,2636.1,4.25952581]
[1729217582964,0.01696751,2636.6,2636.2,1.6453]
[1729217583482,0.20840458,2636.6,2636.2,5.43856]
[1729217583775,3.80238,2636.9,2636.4,3.79297]
[1729217583967,0.01,2636.7,2636.4,7.58594]
[1729217584280,0.01696751,2636.8,2636.5,1.22632608]
[1729217584432,3.80955751,2636.8,2636.2,5.43855]
[1729217585144,3.80955751,2636.8,2636.2,9.23181]
[1729217585377,3.80955751,2636.8,2636.3,3.79319]
[1729217587251,3.80955751,2636.8,2636.2,5.43855]
[1729217587454,3.80955751,2636.8,2636.2,9.23179]
[1729217587671,3.80955751,2636.8,2636.3,0.96219817]
[1729217587981,3.80955751,2636.8,2636.3,4.75535817]
[1729217588402,3.79272,2636.7,2636.3,0.96219817]
[1729217588550,0.1943805,2636.9,2636.1,0.39019165]
[1729217588551,0.00696751,2636.3,2636.1,0.00296]
[1729217588753,5.39303,2636.2,2636.1,0.00296]
[1729217592753,5.58592923,2636.2,2636.1,0.00296]
[1729217596220,5.56292923,2636.2,2636.1,0.00296]
[1729217596367,6.88099013,2636.2,2636.1,0.00296]
[1729217597579,6.89099013,2636.2,2636.1,0.00296]
[1729217597782,9.89099013,2636.2,2636.1,0.00296]
[1729217599270,10.44099013,2636.2,2636.1,1e-05]
[1729217599609,13.22272533,2636.2,2636.1,1e-05]
[1729217600168,10.83611483,2636.2,2636.1,1e-05]
[1729217600581,13.22087067,2636.2,2636.1,1e-05]
[1729217601094,13.22086928,2636.2,2636.1,1e-05]
[1729217602404,10.83611483,2636.2,2636.1,1e-05]
[1729217603110,10.93088445,2636.2,2636.1,1e-05]
[1729217604899,32.68803075,2636.2,2636.1,1e-05]
[1729217605220,5.40290751,2635.5,2635.4,2.45e-06]
[1729217605423,8.95290751,2635.5,2635.4,2.45e-06]
[1729217607810,9.04875484,2635.5,2635.4,2.45e-06]
[1729217609793,9.44403249,2635.5,2635.4,2.45e-06]
[1729217610419,8.79818516,2635.5,2635.4,2.45e-06]
[1729217610624,6.58596404,2635.5,2635.4,2.45e-06]
[1729217611922,9.58596404,2635.5,2635.4,2.45e-06]
[1729217612283,10.13596404,2635.5,2635.4,2.45e-06]
[1729217612797,10.3285904,2635.5,2635.4,2.45e-06]
[1729217615178,9.7785904,2635.5,2635.4,2.45e-06]
[1729217615622,10.3285904,2635.5,2635.4,2.45e-06]
[1729217623802,4.00393387,2635.5,2635.4,2.45e-06]
[1729217626367,4.56393387,2635.5,2635.4,2.45e-06]
[1729217626653,6.12293387,2635.5,2635.4,2.45e-06]
[1729217626853,6.11293387,2635.5,2635.4,2.45e-06]
[1729217627059,4.00393387,2635.5,2635.4,2.45e-06]
[1729217627953,5.66522723,2635.5,2635.4,2.45e-06]
[1729217628620,4.00393387,2635.5,2635.4,2.45e-06]
[1729217628965,5.66522723,2635.5,2635.4,2.45e-06]
[1729217631044,6.76707095,2635.5,2635.4,2.45e-06]
[1729217631244,8.99137095,2635.5,2635.4,2.45e-06]
[1729217632969,12.00137095,2635.5,2635.4,2.45e-06]
[1729217635250,10.33707095,2635.5,2635.4,2.45e-06]
[1729217635761,4.00393387,2635.5,2635.4,2.45e-06]
[1729217635962,5.66522723,2635.5,2635.4,2.45e-06]
[1729217637975,4.00393387,2635.5,2635.4,2.45e-06]
[1729217640695,6.18533387,2635.5,2635.4,2.45e-06]
[1729217640867,9.19533387,2635.5,2635.4,2.45e-06]
[1729217641068,11.68623423,2635.5,2635.4,2.45e-06]
[1729217641606,14.07272437,2635.5,2635.4,2.45e-06]
[1729217641970,11.68623423,2635.5,2635.4,2.45e-06]
[1729217644186,14.90456803,2635.5,2635.4,2.45e-06]
[1729217644391,9.01502751,2635.0,2634.9,4.9e-06]
[1729217644734,12.7266725,2635.0,2634.9,4.9e-06]
[1729217644856,15.70902129,2635.0,2634.9,4.9e-06]
[1729217645056,13.32127569,2635.0,2634.9,4.9e-06]
[1729217645801,12.77127569,2635.0,2634.9,4.9e-06]
[1729217646097,11.12827569,2635.0,2634.9,4.9e-06]
[1729217646266,12.67424765,2635.0,2634.9,4.9e-06]
[1729217646469,13.23424765,2635.0,2634.9,4.9e-06]
[1729217647193,15.62192511,2635.0,2634.9,4.9e-06]
[1729217647397,13.23424765,2635.0,2634.9,4.9e-06]
[1729217648259,15.62192511,2635.0,2634.9,4.9e-06]
[1729217648557,17.16480666,2635.0,2634.9,4.9e-06]
[1729217650596,13.44316167,2635.0,2634.9,4.9e-06]
[1729217650762,4.4066307,2635.0,2634.9,4.9e-06]
[1729217650983,8.11827569,2635.0,2634.9,4.9e-06]
[1729217654379,4.4066307,2635.0,2634.9,4.9e-06]
[1729217655211,8.11827569,2635.0,2634.9,4.9e-06]
[1729217655583,8.66827569,2635.0,2634.9,4.9e-06]
[1729217655790,10.06978626,2635.0,2634.9,4.9e-06]
[1729217658401,4.9566307,2635.0,2634.9,4.9e-06]
[1729217659638,4.36202751,2635.0,2634.9,4.9e-06]
[1729217659780,6.02377273,2635.0,2634.9,4.9e-06]
[1729217659981,6.02377273,2635.0,2634.9,1.5482049]
[1729217660314,5.47377273,2635.0,2634.9,1.5482049]
[1729217660515,6.950643,2635.0,2634.9,4.9e-06]
[1729217660715,10.3947383,2635.0,2634.9,4.9e-06]
[1729217660950,10.78994516,2635.0,2634.9,4.9e-06]
[1729217661083,12.75657776,2635.0,2634.9,4.9e-06]
[1729217661280,28.61693576,2635.0,2634.9,4.9e-06]
[1729217661527,31.40085733,2635.0,2634.9,4.9e-06]
[1729217661739,28.61693576,2635.0,2634.9,4.9e-06]
[1729217661954,31.40085733,2635.0,2634.9,4.9e-06]
[1729217662099,33.06260255,2635.0,2634.9,4.9e-06]
[1729217662303,1.64576751,2634.5,2634.4,2.25e-06]
[1729217662501,7.65329273,2634.5,2634.4,2.25e-06]
[1729217662735,8.798187,2634.5,2634.4,2.25e-06]
[1729217663117,10.45993222,2634.5,2634.4,2.25e-06]
[1729217663820,10.85166826,2634.5,2634.4,2.25e-06]
[1729217664127,9.23286826,2634.5,2634.4,2.25e-06]
[1729217672261,8.08797399,2634.5,2634.4,2.25e-06]
[1729217672635,4.36274751,2634.5,2634.4,2.25e-06]
[1729217673028,4.55535347,2634.5,2634.4,2.25e-06]
[1729217673527,4.00535347,2634.5,2634.4,2.25e-06]
[1729217673724,4.00535347,2634.5,2634.4,1.64630225]
[1729217676799,0.00696751,2634.5,2634.4,1.64630225]
[1729217677102,3.81274751,2634.5,2634.4,1.64630225]
[1729217677744,0.01,2634.5,2634.4,1.64630225]
[1729217678946,0.01,2634.5,2634.4,2.19054648]
[1729217679146,3.81247751,2634.7,2634.5,1.6024]
[1729217679456,0.18670401,2634.6,2634.5,1.6024]
[1729217680741,3.98234401,2634.6,2634.5,1.6024]
[1729217685825,3.79564,2634.6,2634.5,1.6024]
[1729217686801,3.79531,2634.9,2634.5,1.6024]
[1729217686802,3.79544,2634.8,2634.5,1.6024]
[1729217687015,0.01,2634.7,2634.5,1.6024]
[1729217688236,3.8055,2634.7,2634.5,1.6024]
[1729217688929,3.79564,2634.6,2634.5,1.6024]
[1729217689295,3.8055,2634.7,2634.5,1.6024]
[1729217690735,3.79564,2634.6,2634.4,2.25e-06]
[1729217690938,3.80274751,2634.5,2634.4,2.25e-06]
[1729217691088,3.81274751,2634.5,2634.4,2.25e-06]
[1729217691292,8.07797399,2634.5,2634.4,2.25e-06]
[1729217692229,9.74337399,2634.5,2634.4,2.25e-06]
[1729217692533,11.75748184,2634.5,2634.4,2.25e-06]
[1729217701364,14.76748184,2634.5,2634.4,2.25e-06]
[1729217701533,16.00789666,2634.5,2634.4,2.25e-06]
[1729217701729,17.54883184,2634.5,2634.4,2.25e-06]
[1729217702268,15.16276876,2634.5,2634.4,2.25e-06]
[1729217702487,17.54883184,2634.5,2634.4,2.25e-06]
[1729217702638,15.16276876,2634.5,2634.4,2.25e-06]
[1729217702835,19.72312314,2634.5,2634.4,2.25e-06]
[1729217703196,22.10918622,2634.5,2634.4,2.25e-06]
[1729217703361,22.10918622,2634.5,2633.5,0.69464225]
[1729217703362,4.36404751,2633.6,2633.5,0.69464225]
[1729217703560,9.05268374,2633.6,2633.5,0.69464225]
[1729217704177,6.93495726,2633.6,2633.5,0.17521507]
[1729217704383,8.97212751,2633.2,2633.1,9.77e-06]
[1729217704681,13.35730287,2633.2,2633.1,9.77e-06]
[1729217704883,15.07278416,2633.2,2633.1,9.77e-06]
[1729217705386,15.69109817,2633.2,2633.1,9.77e-06]
[1729217707781,3.81462751,2633.2,2633.1,9.77e-06]
[1729217709617,6.81462751,2633.2,2633.1,9.77e-06]
[1729217709783,10.53985399,2633.2,2633.1,9.77e-06]
[1729217710113,12.68395399,2633.2,2633.1,9.77e-06]
[1729217711322,12.69395399,2633.2,2633.1,9.77e-06]
[1729217711533,14.34310039,2633.2,2633.1,9.77e-06]
[1729217711932,15.28605414,2633.2,2633.1,9.77e-06]
[1729217712225,8.08028399,2632.9,2632.8,9.77e-06]
[1729217713178,7.53028399,2632.9,2632.8,9.77e-06]
[1729217715422,3.81505751,2632.9,2632.8,9.77e-06]
[1729217716061,7.53028399,2632.9,2632.8,9.77e-06]
[1729217716260,11.86158474,2632.9,2632.8,9.77e-06]
[1729217716489,7.38534751,2632.7,2632.6,6.91e-06]
[1729217716621,11.09057399,2632.7,2632.6,6.91e-06]
[1729217716820,11.10057399,2632.7,2632.6,6.91e-06]
[1729217717059,12.85069542,2632.7,2632.6,6.91e-06]
[1729217717558,12.84069542,2632.7,2632.6,6.91e-06]
[1729217718521,12.85069542,2632.7,2632.6,6.91e-06]
[1729217718965,12.83069542,2632.7,2632.6,6.91e-06]
[1729217719133,3.81534751,2632.7,2632.6,6.91e-06]
[1729217719547,7.53057399,2632.7,2632.6,6.91e-06]
[1729217720439,9.66787399,2632.7,2632.6,6.91e-06]
[1729217720921,12.67787399,2632.7,2632.6,6.91e-06]
[1729217722496,13.07267553,2632.7,2632.6,6.91e-06]
[1729217722698,14.88635105,2632.7,2632.6,6.91e-06]
[1729217722878,5.32946751,2632.2,2632.1,0.72969959]
[1729217723192,5.32946751,2632.2,2632.1,9.59e-06]
[1729217723193,12.60469399,2632.2,2632.1,9.59e-06]
[1729217723396,3.82664751,2631.8,2631.7,0.74305204]
[1729217723695,12.72337399,2631.8,2631.7,8.52e-06]
[1729217723860,14.37666539,2631.8,2631.7,8.52e-06]
[1729217724065,17.95147439,2631.8,2631.7,8.52e-06]
[1729217724951,14.37666539,2631.8,2631.7,8.52e-06]
[1729217725866,14.36666539,2631.8,2631.7,8.52e-06]
[1729217726072,8.08187399,2631.8,2631.7,8.52e-06]
[1729217727517,3.81664751,2631.8,2631.7,8.52e-06]
[1729217727862,0.01696751,2631.8,2631.7,8.52e-06]
[1729217728306,3.81664751,2631.8,2631.7,8.52e-06]
[1729217728797,0.01696751,2631.8,2631.7,8.52e-06]
[1729217728998,0.01696751,2631.8,2631.7,1.50480852]
[1729217729585,0.01,2631.8,2631.7,1.50480852]
[1729217730101,0.19783943,2632.2,2631.8,5.44489]
[1729217730309,0.01,2632.0,2631.8,1.6453]
[1729217730674,0.01,2632.0,2631.8,3.79963]
[1729217731012,0.01,2632.0,2631.9,1.527]
[1729217732618,0.01,2632.0,2631.9,5.32639]
[1729217732818,0.01,2632.2,2632.0,1.6636]
[1729217733189,0.01,2632.2,2632.0,5.46295]
[1729217733374,0.01696751,2632.2,2632.0,1.6636]
[1729217733576,0.01,2632.2,2632.0,1.6636]
[1729217734484,3.8532,2632.4,2632.2,5.33188]
[1729217734689,3.8532,2632.4,2632.3,1.5328]
[1729217735716,3.8432,2632.4,2632.3,1.5328]
[1729217735870,0.01,2632.1,2631.8,1.6545]
[1729217737894,0.01,2632.1,2631.7,3.79972852]
[1729217738187,7.64904751,2632.4,2632.3,1.6545]
[1729217738188,3.8432,2632.4,2632.3,1.6545]
[1729217745366,3.8432,2632.4,2632.3,5.45345]
[1729217749271,0.01,2632.9,2632.4,1.5977]
[1729217749470,0.01,2632.9,2632.4,5.39645]
[1729217749785,3.80817,2632.9,2632.4,5.39649]
[1729217750096,0.01,2632.9,2632.4,5.39649]
[1729217750400,0.01,2632.9,2632.4,6.315966]
[1729217750995,3.79825,2632.8,2632.4,2.517236]
[1729217751491,0.01,2632.4,2632.1,1.5977]
[1729217751796,0.01,2632.4,2632.1,5.39685]
[1729217752003,0.01,2632.4,2632.1,1.5977]
[1729217753359,3.80882,2632.4,2632.1,1.5977]
[1729217754183,0.01,2632.4,2632.1,1.5977]
[1729217755068,3.80893,2632.4,2632.1,1.5977]
[1729217755267,0.01,2632.2,2631.8,1.6529]
[1729217755451,3.80917,2632.2,2631.8,1.6529]
[1729217755991,7.6084,2632.2,2631.8,1.6529]
[1729217756192,3.79926,2632.1,2631.8,1.6529]
[1729217756353,7.6084,2632.2,2631.8,1.6529]
[1729217756553,3.80917,2632.2,2631.8,1.6529]
[1729217756754,3.79928,2632.1,2631.8,1.6529]
[1729217756954,3.80917,2632.2,2631.8,1.6529]
[1729217757194,7.60835,2632.2,2631.8,1.6529]
[1729217757351,3.80917,2632.2,2631.8,1.6529]
[1729217757756,1.5802,2632.5,2631.8,1.6529]
[1729217757995,3.79903,2632.3,2631.8,1.6529]
[1729217758483,3.7991,2632.2,2631.8,1.6529]
[1729217759059,3.79924,2632.1,2631.8,1.6529]
[1729217759708,3.79932,2632.1,2631.8,1.6529]
[1729217760359,3.79968,2631.8,2631.7,8.52e-06]
[1729217760561,1.6537,2632.0,2631.7,8.52e-06]
[1729217760761,3.79968,2631.8,2631.7,8.52e-06]
[1729217764322,5.45018,2631.8,2631.7,8.52e-06]
[1729217766240,9.52151522,2631.8,2631.7,8.52e-06]
[1729217766383,11.61962114,2631.8,2631.7,8.52e-06]
[1729217766784,11.61861341,2631.8,2631.7,8.52e-06]
[1729217767831,11.10727819,2631.8,2631.7,8.52e-06]
[1729217768016,11.61861341,2631.8,2631.7,8.52e-06]
[1729217768221,12.09963944,2631.8,2631.7,8.52e-06]
[1729217768404,11.61861341,2631.8,2631.7,8.52e-06]
[1729217769436,11.10727819,2631.8,2631.7,8.52e-06]
[1729217769864,11.20159734,2631.8,2631.7,8.52e-06]
[1729217770537,11.71293256,2631.8,2631.7,8.52e-06]
[1729217772640,11.20159734,2631.8,2631.7,8.52e-06]
[1729217774605,5.44917227,2631.8,2631.7,8.52e-06]
[1729217778073,3.79867227,2631.8,2631.7,8.52e-06]
[1729217778471,3.79953,2631.9,2631.7,8.52e-06]
[1729217778671,1.77039944,2632.2,2631.8,1.62]
[1729217778672,3.79932,2632.1,2631.8,1.62]
[1729217779065,7.59866,2632.1,2631.8,1.62]
[1729217779284,3.79932,2632.1,2631.8,1.62]
[1729217780589,0.18599944,2632.2,2631.8,1.62]
[1729217780786,0.18599944,2632.2,2631.9,0.54197585]
[1729217781515,0.18599944,2632.2,2632.0,1.5258]
[1729217782000,3.98512944,2632.2,2632.0,1.5258]
[1729217782244,3.79953,2631.9,2631.8,1.5258]
[1729217782444,3.79926,2632.1,2631.8,1.5258]
[1729217783116,7.64225,2632.3,2631.8,1.5258]
[1729217783117,3.8432,2632.3,2632.1,0.01]
[1729217783324,1.5395,2633.4,2632.1,0.01]
[1729217783325,1.5395,2633.8,2632.8,0.01]
[1729217783639,3.79679,2633.8,2633.2,3.71522648]
[1729217783807,4.19157259,2633.8,2633.3,1.6641]
[1729217784162,0.18728101,2633.4,2633.3,1.6641]
[1729217785510,7.59376,2633.8,2633.3,1.6641]
[1729217785511,3.79686,2633.8,2633.3,1.6641]
[1729217786041,3.79674,2633.9,2633.3,5.47158]
[1729217786244,3.79664,2634.0,2633.3,1.6741]
[1729217786452,3.79679,2633.8,2633.3,1.6741]
[1729217786962,3.79698,2633.7,2633.3,1.6641]
[1729217788227,3.79717,2633.6,2633.3,1.6641]
[1729217788464,3.99040248,2633.6,2633.3,1.6641]
[1729217789522,3.79737,2633.4,2633.3,1.6641]
[1729217789923,3.99040248,2633.6,2633.3,1.6641]
[1729217790158,3.79724,2633.5,2633.3,1.6641]
[1729217792156,3.99040248,2633.6,2633.3,1.6641]
[1729217792364,7.78759248,2633.6,2633.3,1.6641]
[1729217792550,3.79722,2633.5,2633.3,1.6641]
[1729217792926,0.19323248,2633.6,2633.3,1.6641]
[1729217793418,3.99039248,2633.6,2633.3,1.6641]
[1729217794217,7.78758248,2633.6,2633.3,1.6641]
[1729217795166,3.99039248,2633.6,2633.3,1.6641]
[1729217795345,3.79724,2633.5,2633.3,1.6641]
[1729217796971,3.99039248,2633.6,2633.3,1.6641]
[1729217797125,7.78759248,2633.6,2633.3,1.6641]
[1729217797623,7.78758248,2633.6,2633.3,1.6641]
[1729217797819,0.19323248,2633.6,2633.3,1.6641]
[1729217798566,0.19323248,2633.6,2633.4,0.53793265]
[1729217800245,3.79683,2633.8,2633.5,1.4039]
[1729217802365,3.79694,2633.7,2633.5,1.4039]
[1729217802669,3.79683,2633.8,2633.5,1.4039]
[1729217803280,3.79659,2634.0,2633.5,1.4039]
[1729217803441,3.98533451,2634.0,2633.6,0.57391527]
[1729217804263,3.7964,2634.1,2633.6,0.64984901]
[1729217804680,3.7964,2634.1,2633.6,4.44692901]
[1729217804855,0.18931084,2634.1,2633.7,5.14766]
[1729217805056,0.18931084,2634.1,2633.8,0.5797509]
[1729217805381,3.98570084,2634.1,2633.8,0.5797509]
[1729217805687,3.79655,2634.0,2633.8,0.5797509]
[1729217805852,3.79655,2634.0,2633.7,1.3408]
[1729217806051,3.79666,2633.9,2633.7,1.3408]
[1729217807543,3.79656,2634.0,2633.7,1.3408]
[1729217807745,0.18931084,2634.1,2633.8,3.79679]
[1729217807990,0.18931084,2634.1,2633.9,1.3318]
[1729217808280,0.18931084,2634.1,2634.0,0.52045167]
[1729217809073,0.18931084,2634.1,2634.0,1.85225167]
[1729217812688,3.79593,2634.4,2634.0,1.85225167]
[1729217812920,3.79559,2634.7,2634.1,1.3154]
[1729217813074,3.79565,2634.6,2634.1,5.11167]
[1729217813404,7.59118,2634.7,2634.2,0.93473482]
[1729217813693,7.59118,2634.7,2634.4,1.3054]
[1729217813694,3.79564,2634.6,2634.4,1.3054]
[1729217813897,3.79578,2634.5,2634.4,1.3054]
[1729217814097,3.79558,2634.7,2634.4,1.3054]
[1729217814806,3.79578,2634.5,2634.2,2.23553482]
[1729217815005,3.79604,2634.4,2634.2,1.3008]
[1729217815162,3.79607,2634.3,2633.8,1.3008]
[1729217815365,3.79627,2634.2,2633.9,0.88228565]
[1729217815703,3.7965,2634.0,2633.9,0.88228565]
[1729217815866,3.7965,2634.0,2633.8,1.3008]
[1729217816204,3.79623,2634.2,2633.8,1.3008]
[1729217816898,3.79605,2634.4,2633.9,3.79663]
[1729217817103,3.79583,2634.5,2634.0,1.3425]
[1729217817302,0.18892127,2634.8,2634.0,1.3425]
[1729217817462,3.79614,2634.3,2634.1,0.514906]
[1729217817662,3.79614,2634.3,2634.0,1.3425]
[1729217817859,3.79622,2634.2,2634.0,1.3425]
[1729217818131,3.79614,2634.3,2634.0,1.3425]
[1729217818670,3.79629,2634.2,2634.0,1.3425]
[1729217818870,3.79636,2634.1,2634.0,1.3425]